Workbook

Sheet Tool
C1: Herd Structure Simulation (HSS) Model
C2: Victor E. Cabrera (University of Wisconsin-Extension) and Pierre Meyer (Alltech, Inc.) | U2: =CowCI-8 -> 5 | V2: CowPreg
C3: Time to First Calving | E3: 24 | F3: months | U3: =hfrcalving-8 -> 16 | V3: hfrPreg
C4: Heifer Calf Born | E4: 0.47 | F4: of all born | U4: =E6/hfrcalving -> 0.006458333333 | V4: mo
C5: Stillbirth Rate | E5: 0.07 | F5: die at calving or shortly after | Q5: Heifers | R5: Cows | U5: =E7/12 -> 0.025 | V5: mo | X5: Heifers Calving | Z5: =VLOOKUP(hfrcalving,O12:S41,5) -> 60.45433877
C6: Calves and Heifers Culled | E6: 0.155 | F6: do not make it to 1st lactation | Q6: =SUM(S12:S41) -> 1676.652123 | R6: =SUM(S43:S202) -> 1938.186551 | X6: Cows Calving | Z6: =SUM(Z12:Z20) -> 123.2412599
C7: Cow Replacement Rate | E7: 0.3 | F7: per year | X7: Total Calving | Z7: =SUM(Z5:Z6) -> 183.6955986
C8: Cow Calving Interval | E8: 13 | F8: months
C9: Number of Adult Cows | E9: 1000 | F9: count
Q10: month | S10: 620 | U10: m+1 | V10: =S10+1 -> 621
C11: Herd Projected at | E11: 120 | F11: months | N11: Heifers | O11: Age (m)
O12: 1 | Q12: =IF(U12=1,IF(O12<hfrpreg,"Open","Pregnant"),"") -> Open | S12: 79.39242292 | U12: =IF(O12<=hfrcalving,1,0) -> 1 | V12: =Z7*(1-hfrcull)*(fmlcalv-E5/2)*U12 -> 79.39151559 | Y12: 1 | Z12: =VLOOKUP(CowCI,O43:S58,5) -> 40.91068507
O13: 2 | Q13: Open | S13: 78.87866491 | U13: 1 | V13: =S12*(1-hfrcull)*U13 -> 78.87968019 | Y13: 2 | Z13: =VLOOKUP(CowCI,O61:S76,5) -> 27.69586091
C14: Heifers | O14: 3 | Q14: Open | S14: 78.37064894 | U14: 1 | V14: 78.36924019 | Y14: 3 | Z14: =VLOOKUP(CowCI,O79:S94,5) -> 18.74969398
C15: ≤ 2 months old | D15: =SUM(S12:S13) -> 158.2710878 | O15: 4 | Q15: Open | S15: 77.60025693 | U15: 1 | V15: 77.86450516 | Y15: 4 | Z15: =VLOOKUP(CowCI,O97:S112,5) -> 12.70911521
C16: 3 to 6 months old | D16: =SUM(S14:S17) -> 308.3665879 | O16: 5 | Q16: Open | S16: 77.10030731 | U16: 1 | V16: 77.0990886 | Y16: 5 | Z16: =VLOOKUP(CowCI,O115:S130,5) -> 8.593330656
C17: ≥ 7 months non pregnant | D17: =D19-D18-D15-D16 -> 634.8007544 | O17: 6 | Q17: Open | S17: 75.29537469 | U17: 1 | V17: 76.60236782 | Y17: 6 | Z17: =VLOOKUP(CowCI,O133:S148,5) -> 5.862527504
C18: pregnant | D18: =SUMIF(Q12:Q41,"pregnant",S12:S41) -> 575.2136925 | O18: 7 | Q18: Open | S18: 74.80989879 | U18: 1 | V18: 74.80909206 | Y18: 7 | Z18: =VLOOKUP(CowCI,O151:S166,5) -> 3.897584978
C19: Total | D19: =Q6 -> 1676.652123 | O19: 8 | Q19: Open | S19: 72.3395945 | U19: 1 | V19: 74.32675153 | Y19: 8 | Z19: =VLOOKUP(CowCI,O169:S184,5) -> 2.804495968
O20: 9 | Q20: Open | S20: 71.87286815 | U20: 1 | V20: 71.87240129 | Y20: 9 | Z20: =VLOOKUP(CowCI,O187:S202,5) -> 2.0179656
D21: Lactation | O21: 10 | Q21: Open | S21: 70.46812213 | U21: 1 | V21: 71.40868921
C22: Cows | D22: 1st | E22: 2nd | F22: 3rd | G22: Later | H22: All | O22: 11 | Q22: Open | S22: 70.01329676 | U22: 1 | V22: 70.0130155
C23: Non-pregnant | D23: =SUMIF(Q43:Q58,"Open",S43:S58) -> 227.0778529 | E23: =SUMIF(Q61:Q76,"Open",S61:S76) -> 153.6684245 | F23: =SUMIF(Q79:Q94,"Open",S79:S94) -> 104.0311226 | G23: =SUMIF(Q97:Q202,"Open",S97:S202) -> 197.6391513 | H23: =SUM(D23:G23) -> 682.4165513 | O23: 12 | Q23: Open | S23: 69.49459171 | U23: 1 | V23: 69.56112756
C24: Pregnant milking | D24: =SUMPRODUCT(--(P43:P58="Milking"),--(Q43:Q58="Pregnant"),S43:S58) -> 336.7113894 | E24: =SUMPRODUCT(--(P61:P76="Milking"),--(Q61:Q76="Pregnant"),S61:S76) -> 226.9145457 | F24: =SUMPRODUCT(--(P79:P94="Milking"),--(Q79:Q94="Pregnant"),S79:S94) -> 152.9898487 | G24: =SUMPRODUCT(--(P97:P202="Milking"),--(Q97:Q202="Pregnant"),S97:S202) -> 289.5110884 | H24: =SUM(D24:G24) -> 1006.126872 | O24: 13 | Q24: Open | S24: 69.04546069 | U24: 1 | V24: 69.04577247
C25: Dry | D25: =SUMIF(P43:P58,"Dry",S43:S58) -> 82.87032803 | E25: =SUMIF(P61:P76,"Dry",S61:S76) -> 56.1018907 | F25: =SUMIF(P79:P94,"Dry",S79:S94) -> 37.98020087 | G25: =SUMIF(P97:P202,"Dry",S97:S202) -> 72.6907079 | H25: =SUM(D25:G25) -> 249.6431275 | O25: 14 | Q25: Open | S25: 68.60051461 | U25: 1 | V25: 68.59954209
C26: Total | D26: =SUM(D23:D25) -> 646.6595704 | E26: =SUM(E23:E25) -> 436.6848609 | F26: =SUM(F23:F25) -> 295.0011721 | G26: =SUM(G23:G25) -> 559.8409476 | H26: =SUM(D26:G26) -> 1938.186551 | O26: 15 | Q26: Open | S26: 68.15640703 | U26: 1 | V26: 68.15746962
O27: 16 | Q27: Pregnant | S27: 67.71747877 | U27: 1 | V27: 67.71623023
O28: 17 | Q28: Pregnant | S28: 66.94315401 | U28: 1 | V28: 67.28013672
O29: 18 | Q29: Pregnant | S29: 66.51178035 | U29: 1 | V29: 66.51081281
O30: 19 | Q30: Pregnant | S30: 64.65146159 | U30: 1 | V30: 66.0822251
O31: 20 | Q31: Pregnant | S31: 64.23453171 | U31: 1 | V31: 64.2339209
O32: 21 | Q32: Pregnant | S32: 62.1273759 | U32: 1 | V32: 63.81968369
O33: 22 | Q33: Pregnant | S33: 61.72648003 | U33: 1 | V33: 61.7261366
O34: 23 | Q34: Pregnant | S34: 60.84709141 | U34: 1 | V34: 61.32782984
O35: 24 | Q35: Pregnant | S35: 60.45433877 | U35: 1 | V35: 60.45412062
O36: 25 | S36: 0 | U36: 0 | V36: 0
O37: 26 | S37: 0 | U37: 0 | V37: 0
O38: 27 | S38: 0 | U38: 0 | V38: 0
O39: 28 | S39: 0 | U39: 0 | V39: 0
O40: 29 | S40: 0 | U40: 0 | V40: 0
O41: 30 | S41: 0 | U41: 0 | V41: 0
N42: 1st Lact | O42: MIM
O43: 1 | P43: =IF(U43=1,IF(O43<CowCI-1,"Milking","Dry"),"") -> Milking | Q43: =IF(U43=1,IF(O43<CowPreg,"Open","Pregnant"),"") -> Open | S43: 58.94330981 | U43: =IF(O43<=CowCI,1,0) -> 1 | V43: =Z5*(1-cowcull)*U43 -> 58.9429803
O44: 2 | P44: Milking | Q44: Open | S44: 57.4693208 | U44: 1 | V44: =S43*(1-cowcull)*U44 -> 57.46972707
O45: 3 | P45: Milking | Q45: Open | S45: 56.03352504 | U45: 1 | V45: 56.03258778
O46: 4 | P46: Milking | Q46: Open | S46: 54.63169725 | U46: 1 | V46: 54.63268691
O47: 5 | P47: Milking | Q47: Pregnant | S47: 53.26687001 | U47: 1 | V47: 53.26590482
O48: 6 | P48: Milking | Q48: Pregnant | S48: 51.55122314 | U48: 1 | V48: 51.93519826
O49: 7 | P49: Milking | Q49: Pregnant | S49: 50.26310464 | U49: 1 | V49: 50.26244257
O50: 8 | P50: Milking | Q50: Pregnant | S50: 47.69670806 | U50: 1 | V50: 49.00652702
O51: 9 | P51: Milking | Q51: Pregnant | S51: 46.50467462 | U51: 1 | V51: 46.50429036
O52: 10 | P52: Milking | Q52: Pregnant | S52: 44.26764683 | U52: 1 | V52: 45.34205776
O53: 11 | P53: Milking | Q53: Pregnant | S53: 43.16116213 | U53: 1 | V53: 43.16095566
O54: 12 | P54: Dry | Q54: Pregnant | S54: 41.95964296 | U54: 1 | V54: 42.08213307
O55: 13 | P55: Dry | Q55: Pregnant | S55: 40.91068507 | U55: 1 | V55: 40.91065189
O56: 14 | S56: 0 | U56: 0 | V56: 0
O57: 15 | S57: 0 | U57: 0 | V57: 0
O58: 16 | S58: 0 | U58: 0 | V58: 0
N60: 2nd Lact | O60: MIM
O61: 1 | P61: =IF(U61=1,IF(O61<CowCI-1,"Milking","Dry"),"") -> Milking | Q61: =IF(U61=1,IF(O61<CowPreg,"Open","Pregnant"),"") -> Open | S61: 39.88826441 | U61: =IF(O61<=CowCI,1,0) -> 1 | V61: =VLOOKUP(CowCI,O43:S58,5)*(1-cowcull)*U61 -> 39.88791794
O62: 2 | P62: Milking | Q62: Open | S62: 38.89066395 | U62: 1 | V62: =S61*(1-cowcull)*U62 -> 38.8910578
O63: 3 | P63: Milking | Q63: Open | S63: 37.91910885 | U63: 1 | V63: 37.91839735
O64: 4 | P64: Milking | Q64: Open | S64: 36.97038726 | U64: 1 | V64: 36.97113113
O65: 5 | P65: Milking | Q65: Pregnant | S65: 36.04674375 | U65: 1 | V65: 36.04612758
O66: 6 | P66: Milking | Q66: Pregnant | S66: 34.76196276 | U66: 1 | V66: 35.14557516
O67: 7 | P67: Milking | Q67: Pregnant | S67: 33.893315 | U67: 1 | V67: 33.8929137
O68: 8 | P68: Milking | Q68: Pregnant | S68: 31.99825998 | U68: 1 | V68: 33.04598212
O69: 9 | P69: Milking | Q69: Pregnant | S69: 31.1985231 | U69: 1 | V69: 31.19830348
O70: 10 | P70: Milking | Q70: Pregnant | S70: 29.88132612 | U70: 1 | V70: 30.41856002
O71: 11 | P71: Milking | Q71: Pregnant | S71: 29.13441497 | U71: 1 | V71: 29.13429297
O72: 12 | P72: Dry | Q72: Pregnant | S72: 28.4060298 | U72: 1 | V72: 28.4060546
O73: 13 | P73: Dry | Q73: Pregnant | S73: 27.69586091 | U73: 1 | V73: 27.69587905
O74: 14 | S74: 0 | U74: 0 | V74: 0
O75: 15 | S75: 0 | U75: 0 | V75: 0
O76: 16 | S76: 0 | U76: 0 | V76: 0
N78: 3rd Lact | O78: MIM
O79: 1 | P79: =IF(U79=1,IF(O79<CowCI-1,"Milking","Dry"),"") -> Milking | Q79: =IF(U79=1,IF(O79<CowPreg,"Open","Pregnant"),"") -> Open | S79: 27.00379458 | U79: =IF(O79<=CowCI,1,0) -> 1 | V79: =VLOOKUP(CowCI,O61:S76,5)*(1-cowcull)*U79 -> 27.00346438
O80: 2 | P80: Milking | Q80: Open | S80: 26.3283402 | U80: 1 | V80: =S79*(1-cowcull)*U80 -> 26.32869972
O81: 3 | P81: Milking | Q81: Open | S81: 25.67064221 | U81: 1 | V81: 25.6701317
O82: 4 | P82: Milking | Q82: Open | S82: 25.0283456 | U82: 1 | V82: 25.02887615
O83: 5 | P83: Milking | Q83: Pregnant | S83: 24.40301839 | U83: 1 | V83: 24.40263696
O84: 6 | P84: Milking | Q84: Pregnant | S84: 23.40957372 | U84: 1 | V84: 23.79294293
O85: 7 | P85: Milking | Q85: Pregnant | S85: 22.8245752 | U85: 1 | V85: 22.82433438
O86: 8 | P86: Milking | Q86: Pregnant | S86: 21.46823159 | U86: 1 | V86: 22.25396082
O87: 9 | P87: Milking | Q87: Pregnant | S87: 20.93164935 | U87: 1 | V87: 20.9315258
O88: 10 | P88: Milking | Q88: Pregnant | S88: 20.22922802 | U88: 1 | V88: 20.40835811
O89: 11 | P89: Milking | Q89: Pregnant | S89: 19.72357239 | U89: 1 | V89: 19.72349731
O90: 12 | P90: Dry | Q90: Pregnant | S90: 19.23050688 | U90: 1 | V90: 19.23048309
O91: 13 | P91: Dry | Q91: Pregnant | S91: 18.74969398 | U91: 1 | V91: 18.74974421
O92: 14 | S92: 0 | U92: 0 | V92: 0
O93: 15 | S93: 0 | U93: 0 | V93: 0
O94: 16 | S94: 0 | U94: 0 | V94: 0
N96: 4th Lact | O96: MIM
O97: 1 | P97: =IF(U97=1,IF(O97<CowCI-1,"Milking","Dry"),"") -> Milking | Q97: =IF(U97=1,IF(O97<CowPreg,"Open","Pregnant"),"") -> Open | S97: 18.28124563 | U97: =IF(O97<=CowCI,1,0) -> 1 | V97: =VLOOKUP(CowCI,O79:S94,5)*(1-cowcull)*U97 -> 18.28095163
O98: 2 | P98: Milking | Q98: Open | S98: 17.82390247 | U98: 1 | V98: =S97*(1-cowcull)*U98 -> 17.82421449
O99: 3 | P99: Milking | Q99: Open | S99: 17.37864826 | U99: 1 | V99: 17.37830491
O100: 4 | P100: Milking | Q100: Open | S100: 16.94382635 | U100: 1 | V100: 16.94418206
O101: 5 | P101: Milking | Q101: Pregnant | S101: 16.52046542 | U101: 1 | V101: 16.52023069
O102: 6 | P102: Milking | Q102: Pregnant | S102: 15.72423657 | U102: 1 | V102: 16.10745378
O103: 7 | P103: Milking | Q103: Pregnant | S103: 15.33127118 | U103: 1 | V103: 15.33113066
O104: 8 | P104: Milking | Q104: Pregnant | S104: 14.4241907 | U104: 1 | V104: 14.9479894
O105: 9 | P105: Milking | Q105: Pregnant | S105: 14.06365457 | U105: 1 | V105: 14.06358594
O106: 10 | P106: Milking | Q106: Pregnant | S106: 13.71199212 | U106: 1 | V106: 13.71206321
O107: 11 | P107: Milking | Q107: Pregnant | S107: 13.36923924 | U107: 1 | V107: 13.36919232
O108: 12 | P108: Dry | Q108: Pregnant | S108: 13.03506122 | U108: 1 | V108: 13.03500826
O109: 13 | P109: Dry | Q109: Pregnant | S109: 12.70911521 | U109: 1 | V109: 12.70918469
O110: 14 | S110: 0 | U110: 0 | V110: 0
O111: 15 | S111: 0 | U111: 0 | V111: 0
O112: 16 | S112: 0 | U112: 0 | V112: 0
N114: 5th Lact | O114: MIM
O115: 1 | P115: =IF(U115=1,IF(O115<CowCI-1,"Milking","Dry"),"") -> Milking | Q115: =IF(U115=1,IF(O115<CowPreg,"Open","Pregnant"),"") -> Open | S115: 12.39163183 | U115: =IF(O115<=CowCI,1,0) -> 1 | V115: =VLOOKUP(CowCI,O97:S112,5)*(1-cowcull)*U115 -> 12.39138733
O116: 2 | P116: Milking | Q116: Open | S116: 12.08158529 | U116: 1 | V116: =S115*(1-cowcull)*U116 -> 12.08184104
O117: 3 | P117: Milking | Q117: Open | S117: 11.77976024 | U117: 1 | V117: 11.77954566
O118: 4 | P118: Milking | Q118: Open | S118: 11.4850439 | U118: 1 | V118: 11.48526623
O119: 5 | P119: Milking | Q119: Pregnant | S119: 11.19806452 | U119: 1 | V119: 11.1979178
O120: 6 | P120: Milking | Q120: Pregnant | S120: 10.53498692 | U120: 1 | V120: 10.91811291
O121: 7 | P121: Milking | Q121: Pregnant | S121: 10.27169256 | U121: 1 | V121: 10.27161224
O122: 8 | P122: Milking | Q122: Pregnant | S122: 9.752990502 | U122: 1 | V122: 10.01490025
O123: 9 | P123: Milking | Q123: Pregnant | S123: 9.509206922 | U123: 1 | V123: 9.50916574
O124: 10 | P124: Milking | Q124: Pregnant | S124: 9.271434097 | U124: 1 | V124: 9.271476749
O125: 11 | P125: Milking | Q125: Pregnant | S125: 9.039676399 | U125: 1 | V125: 9.039648244
O126: 12 | P126: Dry | Q126: Pregnant | S126: 8.813756887 | U126: 1 | V126: 8.813684489
O127: 13 | P127: Dry | Q127: Pregnant | S127: 8.593330656 | U127: 1 | V127: 8.593412964
O128: 14 | S128: 0 | U128: 0 | V128: 0
O129: 15 | S129: 0 | U129: 0 | V129: 0
O130: 16 | S130: 0 | U130: 0 | V130: 0
N132: 6th Lact | O132: MIM
O133: 1 | P133: =IF(U133=1,IF(O133<CowCI-1,"Milking","Dry"),"") -> Milking | Q133: =IF(U133=1,IF(O133<CowPreg,"Open","Pregnant"),"") -> Open | S133: 8.378685748 | U133: =IF(O133<=CowCI,1,0) -> 1 | V133: =VLOOKUP(CowCI,O115:S130,5)*(1-cowcull)*U133 -> 8.37849739
O134: 2 | P134: Milking | Q134: Open | S134: 8.169023515 | U134: 1 | V134: =S133*(1-cowcull)*U134 -> 8.169218604
O135: 3 | P135: Milking | Q135: Open | S135: 7.964926658 | U135: 1 | V135: 7.964797927
O136: 4 | P136: Milking | Q136: Open | S136: 7.765670069 | U136: 1 | V136: 7.765803492
O137: 5 | P137: Milking | Q137: Pregnant | S137: 7.571616373 | U137: 1 | V137: 7.571528317
O138: 6 | P138: Milking | Q138: Pregnant | S138: 6.999260807 | U138: 1 | V138: 7.382325964
O139: 7 | P139: Milking | Q139: Pregnant | S139: 6.824319445 | U139: 1 | V139: 6.824279287
O140: 8 | P140: Milking | Q140: Pregnant | S140: 6.653669867 | U140: 1 | V140: 6.653711459
O141: 9 | P141: Milking | Q141: Pregnant | S141: 6.487355576 | U141: 1 | V141: 6.487328121
O142: 10 | P142: Milking | Q142: Pregnant | S142: 6.325143251 | U142: 1 | V142: 6.325171686
O143: 11 | P143: Milking | Q143: Pregnant | S143: 6.16703344 | U143: 1 | V143: 6.16701467
O144: 12 | P144: Dry | Q144: Pregnant | S144: 6.012939721 | U144: 1 | V144: 6.012857604
O145: 13 | P145: Dry | Q145: Pregnant | S145: 5.862527504 | U145: 1 | V145: 5.862616228
O146: 14 | S146: 0 | U146: 0 | V146: 0
O147: 15 | S147: 0 | U147: 0 | V147: 0
O148: 16 | S148: 0 | U148: 0 | V148: 0
N150: 7th Lact | O150: MIM
O151: 1 | P151: =IF(U151=1,IF(O151<CowCI-1,"Milking","Dry"),"") -> Milking | Q151: =IF(U151=1,IF(O151<CowPreg,"Open","Pregnant"),"") -> Open | S151: 5.716089888 | U151: =IF(O151<=CowCI,1,0) -> 1 | V151: =VLOOKUP(CowCI,O133:S148,5)*(1-cowcull)*U151 -> 5.715964316
O152: 2 | P152: Milking | Q152: Open | S152: 5.573057597 | U152: 1 | V152: =S151*(1-cowcull)*U152 -> 5.573187641
O153: 3 | P153: Milking | Q153: Open | S153: 5.433816963 | U153: 1 | V153: 5.433731157
O154: 4 | P154: Milking | Q154: Open | S154: 5.297882554 | U154: 1 | V154: 5.297971539
O155: 5 | P155: Milking | Q155: Pregnant | S155: 5.16549423 | U155: 1 | V155: 5.16543549
O156: 6 | P156: Milking | Q156: Pregnant | S156: 4.653322135 | U156: 1 | V156: 5.036356874
O157: 7 | P157: Milking | Q157: Pregnant | S157: 4.537009161 | U157: 1 | V157: 4.536989082
O158: 8 | P158: Milking | Q158: Pregnant | S158: 4.423563136 | U158: 1 | V158: 4.423583932
O159: 9 | P159: Milking | Q159: Pregnant | S159: 4.312987785 | U159: 1 | V159: 4.312974057
O160: 10 | P160: Milking | Q160: Pregnant | S160: 4.205148873 | U160: 1 | V160: 4.20516309
O161: 11 | P161: Milking | Q161: Pregnant | S161: 4.100029536 | U161: 1 | V161: 4.100020151
O162: 12 | P162: Dry | Q162: Pregnant | S162: 3.997620635 | U162: 1 | V162: 3.997528798
O163: 13 | P163: Dry | Q163: Pregnant | S163: 3.897584978 | U163: 1 | V163: 3.897680119
O164: 14 | S164: 0 | U164: 0 | V164: 0
O165: 15 | S165: 0 | U165: 0 | V165: 0
O166: 16 | S166: 0 | U166: 0 | V166: 0
N168: 8th Lact | O168: MIM
O169: 1 | P169: =IF(U169=1,IF(O169<CowCI-1,"Milking","Dry"),"") -> Milking | Q169: =IF(U169=1,IF(O169<CowPreg,"Open","Pregnant"),"") -> Open | S169: 3.80020814 | U169: =IF(O169<=CowCI,1,0) -> 1 | V169: =VLOOKUP(CowCI,O151:S166,5)*(1-cowcull)*U169 -> 3.800145354
O170: 2 | P170: Milking | Q170: Open | S170: 3.705137937 | U170: 1 | V170: =S169*(1-cowcull)*U170 -> 3.705202936
O171: 3 | P171: Milking | Q171: Open | S171: 3.61255237 | U171: 1 | V171: 3.612509488
O172: 4 | P172: Milking | Q172: Open | S172: 3.522194068 | U172: 1 | V172: 3.522238561
O173: 5 | P173: Milking | Q173: Pregnant | S173: 3.434168586 | U173: 1 | V173: 3.434139216
O174: 6 | P174: Milking | Q174: Pregnant | S174: 3.348283953 | U174: 1 | V174: 3.348314371
O175: 7 | P175: Milking | Q175: Pregnant | S175: 3.264596934 | U175: 1 | V175: 3.264576855
O176: 8 | P176: Milking | Q176: Pregnant | S176: 3.182961215 | U176: 1 | V176: 3.18298201
O177: 9 | P177: Milking | Q177: Pregnant | S177: 3.103400912 | U177: 1 | V177: 3.103387184
O178: 10 | P178: Milking | Q178: Pregnant | S178: 3.025801671 | U178: 1 | V178: 3.025815889
O179: 11 | P179: Milking | Q179: Pregnant | S179: 2.950166015 | U179: 1 | V179: 2.95015663
O180: 12 | P180: Dry | Q180: Pregnant | S180: 2.876503702 | U180: 1 | V180: 2.876411864
O181: 13 | P181: Dry | Q181: Pregnant | S181: 2.804495968 | U181: 1 | V181: 2.804591109
O182: 14 | S182: 0 | U182: 0 | V182: 0
O183: 15 | S183: 0 | U183: 0 | V183: 0
O184: 16 | S184: 0 | U184: 0 | V184: 0
N186: 9th Lact | O186: MIM
O187: 1 | P187: =IF(U187=1,IF(O187<CowCI-1,"Milking","Dry"),"") -> Milking | Q187: =IF(U187=1,IF(O187<CowPreg,"Open","Pregnant"),"") -> Open | S187: 2.734446355 | U187: =IF(O187<=CowCI,1,0) -> 1 | V187: =VLOOKUP(CowCI,O169:S184,5)*(1-cowcull)*U187 -> 2.734383569
O188: 2 | P188: Milking | Q188: Open | S188: 2.666020117 | U188: 1 | V188: =S187*(1-cowcull)*U188 -> 2.666085196
O189: 3 | P189: Milking | Q189: Open | S189: 2.599412573 | U189: 1 | V189: 2.599369614
O190: 4 | P190: Milking | Q190: Open | S190: 2.534382766 | U190: 1 | V190: 2.534427259
O191: 5 | P191: Milking | Q191: Pregnant | S191: 2.471052567 | U191: 1 | V191: 2.471023197
O192: 6 | P192: Milking | Q192: Pregnant | S192: 2.409245835 | U192: 1 | V192: 2.409276253
O193: 7 | P193: Milking | Q193: Pregnant | S193: 2.349034768 | U193: 1 | V193: 2.349014689
O194: 8 | P194: Milking | Q194: Pregnant | S194: 2.290288103 | U194: 1 | V194: 2.290308899
O195: 9 | P195: Milking | Q195: Pregnant | S195: 2.233044628 | U195: 1 | V195: 2.2330309
O196: 10 | P196: Milking | Q196: Pregnant | S196: 2.177204295 | U196: 1 | V196: 2.177218512
O197: 11 | P197: Milking | Q197: Pregnant | S197: 2.122783572 | U197: 1 | V197: 2.122774187
O198: 12 | P198: Dry | Q198: Pregnant | S198: 2.06980582 | U198: 1 | V198: 2.069713983
O199: 13 | P199: Dry | Q199: Pregnant | S199: 2.0179656 | U199: 1 | V199: 2.018060675
O200: 14 | S200: 0 | U200: 0 | V200: 0
O201: 15 | S201: 0 | U201: 0 | V201: 0
O202: 16 | S202: 0 | U202: 0 | V202: 0
